[Event "*** Titled Tuesday 3|2 Blitz (Late)"]
[Site "Chess.com"]
[Date "2016.11.01"]
[Round "1"]
[White "GM_Barcenilla"]
[Black "GianmarcoVaR"]
[Result "1-0"]
[WhiteElo "2701"]
[BlackElo "2412"]
[TimeControl "180+2"]
[EndTime "17:07:19 PDT"]
[Termination "GM_Barcenilla won by resignation"]

1. c4 {[%clk 0:03:01.8]} 1... e5 {[%clk 0:02:40.1]} 2. g3 {[%clk 0:03:02.8]}
2... f5 {[%clk 0:02:40.3]} 3. Bg2 {[%clk 0:03:04]} 3... Nf6 {[%clk 0:02:41.7]}
4. Nc3 {[%clk 0:03:03.5]} 4... Bb4 {[%clk 0:02:43.2]} 5. Qc2 {[%clk 0:03:00.1]}
5... Nc6 {[%clk 0:02:42.9]} 6. Qxf5 {[%clk 0:02:51.9]} 6... d5 {[%clk
0:02:37.8]} 7. Qb1 {[%clk 0:02:50.4]} 7... dxc4 {[%clk 0:02:35.5]} 8. Nf3 {[%clk
0:02:51.6]} 8... O-O {[%clk 0:02:26.8]} 9. O-O {[%clk 0:02:51.1]} 9... Bg4
{[%clk 0:02:27]} 10. a3 {[%clk 0:02:38.5]} 10... Bc5 {[%clk 0:02:24.8]} 11. Qa2
{[%clk 0:02:34.6]} 11... Na5 {[%clk 0:02:17.5]} 12. Nxe5 {[%clk 0:02:24.4]}
12... Be6 {[%clk 0:02:16.6]} 13. d3 {[%clk 0:02:24.1]} 13... Nb3 {[%clk
0:02:11.7]} 14. Nxc4 {[%clk 0:02:18.9]} 14... Nxa1 {[%clk 0:02:10]} 15. Qxa1
{[%clk 0:02:20.8]} 15... c6 {[%clk 0:02:06.1]} 16. b4 {[%clk 0:02:19.1]} 16...
Bd4 {[%clk 0:02:04.7]} 17. e3 {[%clk 0:02:19]} 17... Bxc4 {[%clk 0:02:05.3]} 18.
dxc4 {[%clk 0:02:15.2]} 18... Be5 {[%clk 0:02:05.9]} 19. f4 {[%clk 0:02:10.2]}
19... Bc7 {[%clk 0:02:04.6]} 20. e4 {[%clk 0:02:04.9]} 20... Qd4+ {[%clk
0:02:04.6]} 21. Kh1 {[%clk 0:02:05.6]} 21... Qxc4 {[%clk 0:02:05.3]} 22. e5
{[%clk 0:01:52.2]} 22... Ng4 {[%clk 0:02:04.6]} 23. Qa2 {[%clk 0:01:38.1]} 23...
Qxa2 {[%clk 0:02:04.4]} 24. Nxa2 {[%clk 0:01:39.7]} 24... Rad8 {[%clk
0:02:03.6]} 25. Bf3 {[%clk 0:01:33.5]} 25... Nh6 {[%clk 0:01:53.4]} 26. Be2
{[%clk 0:01:34.5]} 26... Nf5 {[%clk 0:01:53.7]} 27. Nc3 {[%clk 0:01:33.8]} 27...
Nd4 {[%clk 0:01:52.2]} 28. Bc4+ {[%clk 0:01:31.8]} 28... Kh8 {[%clk 0:01:53.8]}
29. Ne4 {[%clk 0:01:33.3]} 29... h6 {[%clk 0:01:47.5]} 30. Kg2 {[%clk
0:01:30.6]} 30... a5 {[%clk 0:01:45.5]} 31. bxa5 {[%clk 0:01:23.9]} 31... Bxa5
{[%clk 0:01:44]} 32. Nd6 {[%clk 0:01:25.2]} 32... Rd7 {[%clk 0:01:41.2]} 33. Rd1
{[%clk 0:01:26.4]} 33... Nf5 {[%clk 0:01:26]} 34. Be6 {[%clk 0:01:23.9]} 34...
Rdd8 {[%clk 0:01:21.8]} 35. Bxf5 {[%clk 0:01:08.3]} 35... Rxf5 {[%clk
0:01:22.6]} 36. e6 {[%clk 0:01:09.7]} 36... Rf6 {[%clk 0:01:08]} 37. Nf7+ {[%clk
0:00:54.5]} 37... Rxf7 {[%clk 0:00:54]} 38. exf7 {[%clk 0:00:56.4]} 38... g6
{[%clk 0:00:39.1]} 39. Rxd8+ {[%clk 0:00:55.9]} 1-0

[Event "*** Titled Tuesday 3|2 Blitz (Late)"]
[Site "Chess.com"]
[Date "2016.11.01"]
[Round "1"]
[White "micfel"]
[Black "uzbektiger95"]
[Result "1/2-1/2"]
[WhiteElo "2274"]
[BlackElo "2593"]
[TimeControl "180+2"]
[EndTime "17:07:46 PDT"]
[Termination "Game drawn by repetition"]

1. e4 {[%clk 0:03:00]} 1... c5 {[%clk 0:01:59.2]} 2. Nf3 {[%clk 0:02:59.9]} 2...
Nc6 {[%clk 0:02:00.6]} 3. d4 {[%clk 0:03:00.4]} 3... cxd4 {[%clk 0:02:02.5]} 4.
Nxd4 {[%clk 0:03:01.3]} 4... g6 {[%clk 0:02:03]} 5. Nb3 {[%clk 0:03:01.4]} 5...
Bg7 {[%clk 0:02:04.6]} 6. Nc3 {[%clk 0:03:02.3]} 6... Nf6 {[%clk 0:02:06.2]} 7.
Be3 {[%clk 0:03:02.6]} 7... O-O {[%clk 0:02:07.6]} 8. Be2 {[%clk 0:03:03.4]}
8... d6 {[%clk 0:02:07.8]} 9. Qd2 {[%clk 0:03:03.3]} 9... a6 {[%clk 0:02:08.9]}
10. Bh6 {[%clk 0:03:02.1]} 10... b5 {[%clk 0:02:08.9]} 11. Bxg7 {[%clk
0:03:02.6]} 11... Kxg7 {[%clk 0:02:10.8]} 12. f3 {[%clk 0:03:02]} 12... Be6
{[%clk 0:02:10.2]} 13. Nd4 {[%clk 0:03:00]} 13... Nxd4 {[%clk 0:02:10.4]} 14.
Qxd4 {[%clk 0:03:00.6]} 14... Qa5 {[%clk 0:02:11]} 15. O-O {[%clk 0:02:57.3]}
15... Rfc8 {[%clk 0:02:11.5]} 16. a3 {[%clk 0:02:56.2]} 16... Qc7 {[%clk
0:02:11]} 17. Rad1 {[%clk 0:02:54.8]} 17... Qc5 {[%clk 0:02:12.4]} 18. Kh1
{[%clk 0:02:52]} 18... Qxd4 {[%clk 0:02:13.9]} 19. Rxd4 {[%clk 0:02:52.6]} 19...
Nd7 {[%clk 0:02:15.4]} 20. Rfd1 {[%clk 0:02:52.5]} 20... Ne5 {[%clk 0:02:15.9]}
21. Kg1 {[%clk 0:02:52.9]} 21... Rc5 {[%clk 0:02:16.2]} 22. Kf2 {[%clk
0:02:53.1]} 22... Rac8 {[%clk 0:02:17.9]} 23. f4 {[%clk 0:02:51]} 23... Nc6
{[%clk 0:02:16.5]} 24. R4d2 {[%clk 0:02:49.9]} 24... f6 {[%clk 0:02:17.4]} 25.
g3 {[%clk 0:02:42.2]} 25... Rb8 {[%clk 0:02:14.6]} 26. Nd5 {[%clk 0:02:36.6]}
26... Bxd5 {[%clk 0:02:09.1]} 27. exd5 {[%clk 0:02:36.8]} 27... Nd8 {[%clk
0:02:09.8]} 28. c3 {[%clk 0:02:35.7]} 28... f5 {[%clk 0:02:05.6]} 29. Bf3 {[%clk
0:02:31.4]} 29... Kf6 {[%clk 0:02:06.6]} 30. Ke3 {[%clk 0:02:31.5]} 30... h6
{[%clk 0:02:07.1]} 31. h4 {[%clk 0:02:27.8]} 31... a5 {[%clk 0:02:07]} 32. Rd4
{[%clk 0:02:28.1]} 32... Nf7 {[%clk 0:02:00.8]} 33. R1d2 {[%clk 0:02:24.2]}
33... g5 {[%clk 0:02:01.8]} 34. hxg5+ {[%clk 0:02:22.4]} 34... hxg5 {[%clk
0:02:03.7]} 35. Rh2 {[%clk 0:02:18.2]} 35... b4 {[%clk 0:01:58.4]} 36. axb4
{[%clk 0:02:17.6]} 36... axb4 {[%clk 0:01:59.6]} 37. cxb4 {[%clk 0:02:11.6]}
37... Rcb5 {[%clk 0:01:59.9]} 38. Rh7 {[%clk 0:02:02.3]} 38... Rxb4 {[%clk
0:01:59.6]} 39. Bh5 {[%clk 0:01:57.9]} 39... Rb3+ {[%clk 0:01:57.3]} 40. Rd3
{[%clk 0:01:55]} 40... gxf4+ {[%clk 0:01:45]} 41. gxf4 {[%clk 0:01:54.4]} 41...
Rxd3+ {[%clk 0:01:45.9]} 42. Kxd3 {[%clk 0:01:54.8]} 42... Nd8 {[%clk
0:01:45.6]} 43. Rh8 {[%clk 0:01:50.8]} 43... e5 {[%clk 0:01:33.9]} 44. dxe6
{[%clk 0:01:47.5]} 44... Kxe6 {[%clk 0:01:35.2]} 45. b4 {[%clk 0:01:44.3]} 45...
Rxb4 {[%clk 0:01:20]} 46. Rxd8 {[%clk 0:01:42]} 46... Rxf4 {[%clk 0:01:21.2]}
47. Re8+ {[%clk 0:01:35.4]} 47... Kf6 {[%clk 0:01:22.2]} 48. Rg8 {[%clk
0:01:25.5]} 48... d5 {[%clk 0:01:18.6]} 49. Rg6+ {[%clk 0:01:19.4]} 49... Ke5
{[%clk 0:01:19.7]} 50. Rg8 {[%clk 0:01:19.8]} 50... Rd4+ {[%clk 0:01:20.7]} 51.
Ke3 {[%clk 0:01:19.5]} 51... f4+ {[%clk 0:01:21.9]} 52. Kf2 {[%clk 0:01:16.7]}
52... Rd2+ {[%clk 0:01:23.1]} 53. Be2 {[%clk 0:01:16.6]} 53... Rb2 {[%clk
0:01:23.9]} 54. Re8+ {[%clk 0:01:16.1]} 54... Kf5 {[%clk 0:01:25.2]} 55. Rf8+
{[%clk 0:01:16.6]} 55... Ke5 {[%clk 0:01:26.3]} 56. Re8+ {[%clk 0:01:17]} 56...
Kf5 {[%clk 0:01:27.7]} 57. Rf8+ {[%clk 0:01:17.6]} 57... Ke5 {[%clk 0:01:29]}
58. Re8+ {[%clk 0:01:18.3]} 1/2-1/2

[Event "*** Titled Tuesday 3|2 Blitz (Late)"]
[Site "Chess.com"]
[Date "2016.11.01"]
[Round "1"]
[White "jk13"]
[Black "michaelk123"]
[Result "1-0"]
[WhiteElo "2503"]
[BlackElo "2147"]
[TimeControl "180+2"]
[EndTime "17:07:52 PDT"]
[Termination "jk13 won by resignation"]

1. e4 {[%clk 0:02:59]} 1... e6 {[%clk 0:02:59.8]} 2. d4 {[%clk 0:02:58.5]} 2...
d5 {[%clk 0:03:01.1]} 3. Nd2 {[%clk 0:03:00]} 3... c5 {[%clk 0:03:01.7]} 4. exd5
{[%clk 0:03:00.5]} 4... Qxd5 {[%clk 0:03:02.5]} 5. Ngf3 {[%clk 0:03:02]} 5...
cxd4 {[%clk 0:03:03.2]} 6. Bc4 {[%clk 0:03:03.7]} 6... Qd7 {[%clk 0:03:03.9]} 7.
O-O {[%clk 0:03:05.3]} 7... Nc6 {[%clk 0:03:03.7]} 8. Nb3 {[%clk 0:03:06.9]}
8... Nf6 {[%clk 0:03:03.9]} 9. Qe2 {[%clk 0:03:08.4]} 9... a6 {[%clk 0:02:59.1]}
10. Rd1 {[%clk 0:03:09.5]} 10... b5 {[%clk 0:02:35.7]} 11. Bd3 {[%clk
0:03:09.6]} 11... Be7 {[%clk 0:02:27.2]} 12. Nbxd4 {[%clk 0:03:09.9]} 12... Nxd4
{[%clk 0:02:21.1]} 13. Nxd4 {[%clk 0:03:11.8]} 13... O-O {[%clk 0:02:14.2]} 14.
Bf4 {[%clk 0:03:06.4]} 14... Bb7 {[%clk 0:02:05.5]} 15. c3 {[%clk 0:03:07.2]}
15... g6 {[%clk 0:01:50.7]} 16. Nf3 {[%clk 0:03:02.1]} 16... Qc6 {[%clk
0:01:43.2]} 17. Qf1 {[%clk 0:02:56.2]} 17... Rad8 {[%clk 0:01:37.1]} 18. h3
{[%clk 0:02:49.9]} 18... Qc8 {[%clk 0:01:24.6]} 19. Ne5 {[%clk 0:02:45.2]} 19...
Nd7 {[%clk 0:01:12.6]} 20. Qe2 {[%clk 0:02:42.2]} 20... Nxe5 {[%clk 0:01:04.3]}
21. Bxe5 {[%clk 0:02:44.1]} 21... Qc6 {[%clk 0:01:03.8]} 22. f3 {[%clk
0:02:35.9]} 22... Qb6+ {[%clk 0:00:58.2]} 23. Kh1 {[%clk 0:02:35.3]} 23... Rd7
{[%clk 0:00:54.7]} 24. a4 {[%clk 0:02:28.6]} 24... b4 {[%clk 0:00:51.5]} 25. a5
{[%clk 0:02:29.6]} 25... Qc5 {[%clk 0:00:36.9]} 26. Bd4 {[%clk 0:02:20.2]} 26...
Qc8 {[%clk 0:00:34]} 27. Qe5 {[%clk 0:02:18.5]} 27... Rxd4 {[%clk 0:00:28.9]}
28. cxd4 {[%clk 0:02:11.2]} 28... Rd8 {[%clk 0:00:25.4]} 29. Rac1 {[%clk
0:02:11.7]} 29... Qd7 {[%clk 0:00:22.8]} 30. Rc7 {[%clk 0:02:10.9]} 30... Qa4
{[%clk 0:00:13.9]} 31. Rdc1 {[%clk 0:01:52.7]} 31... Bd6 {[%clk 0:00:14.9]} 32.
Qf6 {[%clk 0:01:38.2]} 32... Bxc7 {[%clk 0:00:15.9]} 33. Rxc7 {[%clk 0:01:39.7]}
33... Qd1+ {[%clk 0:00:11.8]} 34. Kh2 {[%clk 0:01:40.2]} 34... Rf8 {[%clk
0:00:13.5]} 35. Rxb7 {[%clk 0:01:14.2]} 35... Qxd3 {[%clk 0:00:13.7]} 36. Rxb4
{[%clk 0:01:15.9]} 36... Qd2 {[%clk 0:00:12.1]} 37. Rb7 {[%clk 0:01:08.9]} 37...
h6 {[%clk 0:00:12]} 38. b4 {[%clk 0:01:09.2]} 38... Qg5 {[%clk 0:00:10.4]} 39.
Qxg5 {[%clk 0:01:10.1]} 39... hxg5 {[%clk 0:00:12]} 40. Rb6 {[%clk 0:01:10.2]}
40... Rd8 {[%clk 0:00:13.3]} 41. Rxa6 {[%clk 0:01:10.8]} 41... Rxd4 {[%clk
0:00:15]} 42. Rb6 {[%clk 0:01:12.4]} 42... Rd2 {[%clk 0:00:13.5]} 43. a6 {[%clk
0:01:13.5]} 43... Ra2 {[%clk 0:00:13.6]} 44. b5 {[%clk 0:01:14.8]} 44... Kf8
{[%clk 0:00:14.3]} 45. Rb7 {[%clk 0:01:16.1]} 45... Ke8 {[%clk 0:00:15.3]} 46.
a7 {[%clk 0:01:17.6]} 46... Kd8 {[%clk 0:00:14.3]} 47. Rb8+ {[%clk 0:01:18.7]}
47... Kc7 {[%clk 0:00:15.5]} 48. a8=Q {[%clk 0:01:20.6]} 1-0

[Event "*** Titled Tuesday 3|2 Blitz (Late)"]
[Site "Chess.com"]
[Date "2016.11.01"]
[Round "1"]
[White "LawrenceTrent"]
[Black "FearlessKing64"]
[Result "0-1"]
[WhiteElo "2478"]
[BlackElo "2177"]
[TimeControl "180+2"]
[EndTime "17:08:20 PDT"]
[Termination "FearlessKing64 won by checkmate"]

1. e4 {[%clk 0:03:00.7]} 1... c5 {[%clk 0:03:00.1]} 2. Nc3 {[%clk 0:03:00.7]}
2... d6 {[%clk 0:02:59.9]} 3. f4 {[%clk 0:03:00.9]} 3... g6 {[%clk 0:03:00.4]}
4. Nf3 {[%clk 0:03:01.5]} 4... Bg7 {[%clk 0:03:02]} 5. Bb5+ {[%clk 0:03:01.9]}
5... Bd7 {[%clk 0:03:01.4]} 6. Bc4 {[%clk 0:03:02.5]} 6... e6 {[%clk 0:02:59.9]}
7. O-O {[%clk 0:03:00.9]} 7... Ne7 {[%clk 0:02:58.8]} 8. d3 {[%clk 0:02:57.9]}
8... Bc6 {[%clk 0:02:51.2]} 9. Qe1 {[%clk 0:02:51.9]} 9... O-O {[%clk
0:02:49.2]} 10. f5 {[%clk 0:02:52.1]} 10... d5 {[%clk 0:02:48.9]} 11. Bb3 {[%clk
0:02:52.6]} 11... c4 {[%clk 0:02:44.1]} 12. f6 {[%clk 0:02:35.3]} 12... Bxf6
{[%clk 0:02:38.9]} 13. exd5 {[%clk 0:02:33.6]} 13... cxb3 {[%clk 0:02:22.5]} 14.
dxc6 {[%clk 0:02:33.8]} 14... Nbxc6 {[%clk 0:02:22.4]} 15. axb3 {[%clk
0:02:32.7]} 15... Nf5 {[%clk 0:02:17.6]} 16. Ne4 {[%clk 0:02:30]} 16... Bg7
{[%clk 0:02:16.1]} 17. Kh1 {[%clk 0:02:28]} 17... Ncd4 {[%clk 0:02:08.5]} 18.
Nxd4 {[%clk 0:02:26.6]} 18... Nxd4 {[%clk 0:02:06.6]} 19. Qf2 {[%clk 0:02:25]}
19... Rc8 {[%clk 0:02:00.5]} 20. Nc3 {[%clk 0:02:23.3]} 20... a6 {[%clk
0:01:58]} 21. Be3 {[%clk 0:02:20.5]} 21... Nf5 {[%clk 0:01:36]} 22. Bc5 {[%clk
0:02:20.5]} 22... Re8 {[%clk 0:01:24.3]} 23. b4 {[%clk 0:02:14.8]} 23... h5
{[%clk 0:00:54.1]} 24. Rae1 {[%clk 0:02:11.6]} 24... Rc6 {[%clk 0:00:44.2]} 25.
Qd2 {[%clk 0:01:46]} 25... b6 {[%clk 0:00:37.1]} 26. Bg1 {[%clk 0:01:45.7]}
26... Qh4 {[%clk 0:00:35.2]} 27. Ne4 {[%clk 0:01:31]} 27... Rec8 {[%clk
0:00:32]} 28. c4 {[%clk 0:01:30.8]} 28... Rd8 {[%clk 0:00:26]} 29. Rf3 {[%clk
0:01:25.5]} 29... Qe7 {[%clk 0:00:18.6]} 30. c5 {[%clk 0:01:24.4]} 30... b5
{[%clk 0:00:17.3]} 31. Ref1 {[%clk 0:01:24.4]} 31... Rd4 {[%clk 0:00:15.4]} 32.
Bxd4 {[%clk 0:01:24.5]} 32... Bxd4 {[%clk 0:00:15.8]} 33. g3 {[%clk 0:01:14.8]}
33... Kg7 {[%clk 0:00:14.4]} 34. Qe2 {[%clk 0:01:11.7]} 34... Be5 {[%clk
0:00:15.4]} 35. Rg1 {[%clk 0:01:07.8]} 35... Nd4 {[%clk 0:00:15.8]} 36. Qf2
{[%clk 0:01:06.7]} 36... Nxf3 {[%clk 0:00:17.2]} 37. Qxf3 {[%clk 0:01:08.6]}
37... f5 {[%clk 0:00:18.5]} 38. Nf2 {[%clk 0:01:08.1]} 38... Rc7 {[%clk
0:00:19.2]} 39. b3 {[%clk 0:01:06.4]} 39... Qf6 {[%clk 0:00:19.6]} 40. Rc1
{[%clk 0:01:06.3]} 40... Bd4 {[%clk 0:00:20.8]} 41. Nh3 {[%clk 0:01:06.4]} 41...
e5 {[%clk 0:00:17.7]} 42. Qd5 {[%clk 0:01:06.7]} 42... Qf7 {[%clk 0:00:17.8]}
43. Qd6 {[%clk 0:01:06.4]} 43... Rd7 {[%clk 0:00:18.4]} 44. Qc6 {[%clk 0:01:06]}
44... Rc7 {[%clk 0:00:16.7]} 45. Qb6 {[%clk 0:01:06.3]} 45... Qd5# {[%clk
0:00:17.7]} 0-1

[Event "*** Titled Tuesday 3|2 Blitz (Late)"]
[Site "Chess.com"]
[Date "2016.11.01"]
[Round "1"]
[White "nonscitis"]
[Black "Alexander_Moskalenko"]
[Result "0-1"]
[WhiteElo "2315"]
[BlackElo "2659"]
[TimeControl "180+2"]
[EndTime "17:09:12 PDT"]
[Termination "Alexander_Moskalenko won by resignation"]

1. d4 {[%clk 0:03:00.9]} 1... d5 {[%clk 0:02:13.9]} 2. c4 {[%clk 0:03:00.4]}
2... e6 {[%clk 0:02:12]} 3. Nc3 {[%clk 0:03:00.5]} 3... a6 {[%clk 0:02:13.1]} 4.
e3 {[%clk 0:02:59.4]} 4... Nf6 {[%clk 0:02:12.7]} 5. Nf3 {[%clk 0:02:59.5]} 5...
c6 {[%clk 0:02:13.8]} 6. b3 {[%clk 0:02:59.6]} 6... Bb4 {[%clk 0:02:14.7]} 7.
Bd2 {[%clk 0:02:59.8]} 7... b5 {[%clk 0:02:16]} 8. Bd3 {[%clk 0:02:51.6]} 8...
dxc4 {[%clk 0:02:10.7]} 9. bxc4 {[%clk 0:02:51.9]} 9... O-O {[%clk 0:02:09.1]}
10. O-O {[%clk 0:02:52]} 10... bxc4 {[%clk 0:02:10.3]} 11. Bxc4 {[%clk
0:02:52.2]} 11... c5 {[%clk 0:02:11.7]} 12. a3 {[%clk 0:02:49.4]} 12... cxd4
{[%clk 0:02:02.1]} 13. axb4 {[%clk 0:02:45.4]} 13... dxc3 {[%clk 0:02:03.5]} 14.
Bxc3 {[%clk 0:02:46.1]} 14... Bb7 {[%clk 0:02:05.1]} 15. Qxd8 {[%clk 0:02:39.6]}
15... Rxd8 {[%clk 0:02:05.3]} 16. Bxf6 {[%clk 0:02:39.5]} 16... gxf6 {[%clk
0:02:05.6]} 17. Nd4 {[%clk 0:02:36.4]} 17... Nd7 {[%clk 0:02:05.5]} 18. b5
{[%clk 0:02:18.2]} 18... axb5 {[%clk 0:01:47]} 19. Bxb5 {[%clk 0:02:17.6]} 19...
Ne5 {[%clk 0:01:45]} 20. h3 {[%clk 0:02:08.7]} 20... h5 {[%clk 0:01:40.9]} 21.
f4 {[%clk 0:01:51.3]} 21... Ng6 {[%clk 0:01:32.2]} 22. Bc6 {[%clk 0:01:22.3]}
22... Rxa1 {[%clk 0:01:26.7]} 23. Rxa1 {[%clk 0:01:20.8]} 23... Bxc6 {[%clk
0:01:08.9]} 24. Nxc6 {[%clk 0:01:21.5]} 24... Rd2 {[%clk 0:01:10.8]} 25. Rf1
{[%clk 0:01:14.7]} 25... Nh4 {[%clk 0:01:09.4]} 26. Rf2 {[%clk 0:01:08.3]} 26...
Rd1+ {[%clk 0:01:05.4]} 27. Rf1 {[%clk 0:01:09]} 27... Rd3 {[%clk 0:01:05.7]}
28. Re1 {[%clk 0:01:02.1]} 28... Rd2 {[%clk 0:01:06.5]} 29. Kh1 {[%clk
0:00:55.8]} 29... Kf8 {[%clk 0:00:49.5]} 30. Rg1 {[%clk 0:00:46.5]} 30... Re2
{[%clk 0:00:50.7]} 31. Nd4 {[%clk 0:00:37.8]} 31... Rxe3 {[%clk 0:00:51.2]} 32.
Rf1 {[%clk 0:00:38.8]} 32... f5 {[%clk 0:00:50]} 33. Kh2 {[%clk 0:00:38.4]}
33... Ng6 {[%clk 0:00:47.2]} 34. Rf2 {[%clk 0:00:36.3]} 34... Rd3 {[%clk
0:00:44.6]} 35. Ne2 {[%clk 0:00:35.6]} 35... Rd2 {[%clk 0:00:46]} 36. Kg1 {[%clk
0:00:36]} 36... h4 {[%clk 0:00:41]} 37. Kh2 {[%clk 0:00:21]} 37... Kg7 {[%clk
0:00:41.9]} 38. Kg1 {[%clk 0:00:21.9]} 38... f6 {[%clk 0:00:30.6]} 39. Kh2
{[%clk 0:00:22.7]} 39... Rb2 {[%clk 0:00:28.2]} 40. g3 {[%clk 0:00:23.7]} 40...
hxg3+ {[%clk 0:00:24.8]} 41. Kxg3 {[%clk 0:00:25.6]} 41... Ne7 {[%clk
0:00:20.2]} 42. Ng1 {[%clk 0:00:25.5]} 42... Rb3+ {[%clk 0:00:21]} 43. Kh2
{[%clk 0:00:24.3]} 43... Nd5 {[%clk 0:00:21.8]} 44. Ne2 {[%clk 0:00:25.2]} 44...
Rb2 {[%clk 0:00:23.3]} 45. Kg2 {[%clk 0:00:26.3]} 45... Rxe2 {[%clk 0:00:23.1]}
46. Rxe2 {[%clk 0:00:25.1]} 46... Nxf4+ {[%clk 0:00:24.4]} 0-1

[Event "*** Titled Tuesday 3|2 Blitz (Late)"]
[Site "Chess.com"]
[Date "2016.11.01"]
[Round "1"]
[White "oskariot"]
[Black "platy3"]
[Result "1-0"]
[WhiteElo "2380"]
[BlackElo "2673"]
[TimeControl "180+2"]
[EndTime "17:09:14 PDT"]
[Termination "oskariot won by resignation"]

1. e4 {[%clk 0:03:01.8]} 1... c5 {[%clk 0:03:00.6]} 2. Nf3 {[%clk 0:03:02.5]}
2... e6 {[%clk 0:03:00.6]} 3. d4 {[%clk 0:03:03.7]} 3... cxd4 {[%clk 0:03:01.5]}
4. Nxd4 {[%clk 0:03:05.1]} 4... a6 {[%clk 0:03:03.1]} 5. c4 {[%clk 0:03:06.3]}
5... Nf6 {[%clk 0:03:01.7]} 6. Nc3 {[%clk 0:03:07.4]} 6... Bb4 {[%clk
0:02:56.4]} 7. Be2 {[%clk 0:02:59.7]} 7... O-O {[%clk 0:02:55.9]} 8. O-O {[%clk
0:02:53.5]} 8... Qc7 {[%clk 0:02:55]} 9. Qd3 {[%clk 0:02:44.1]} 9... Nc6 {[%clk
0:02:55.2]} 10. Bg5 {[%clk 0:02:37.6]} 10... Bc5 {[%clk 0:02:41.2]} 11. Bxf6
{[%clk 0:02:16.1]} 11... gxf6 {[%clk 0:02:41.6]} 12. Nb3 {[%clk 0:02:11.5]}
12... Be7 {[%clk 0:02:40.2]} 13. Rac1 {[%clk 0:02:09.6]} 13... Kh8 {[%clk
0:02:39.5]} 14. Nd5 {[%clk 0:01:13.7]} 14... exd5 {[%clk 0:02:27]} 15. cxd5
{[%clk 0:01:13.1]} 15... Qe5 {[%clk 0:02:28.6]} 16. dxc6 {[%clk 0:00:54.5]}
16... dxc6 {[%clk 0:02:30.5]} 17. Rc2 {[%clk 0:00:51.7]} 17... f5 {[%clk
0:02:16.6]} 18. Bf3 {[%clk 0:00:32.3]} 18... Rd8 {[%clk 0:02:10.7]} 19. Qe3
{[%clk 0:00:27.4]} 19... f4 {[%clk 0:01:47.2]} 20. Qc3 {[%clk 0:00:26.8]} 20...
Bf6 {[%clk 0:01:45.7]} 21. Qxe5 {[%clk 0:00:25.5]} 21... Bxe5 {[%clk 0:01:47.6]}
22. Nd2 {[%clk 0:00:26.2]} 22... Be6 {[%clk 0:01:46.9]} 23. h3 {[%clk
0:00:23.6]} 23... f6 {[%clk 0:01:08.9]} 24. Nc4 {[%clk 0:00:22.2]} 24... Bc7
{[%clk 0:01:08.5]} 25. Bg4 {[%clk 0:00:21]} 25... Bf7 {[%clk 0:01:08.4]} 26. Bf5
{[%clk 0:00:21.1]} 26... Rd4 {[%clk 0:01:08.5]} 27. Nd2 {[%clk 0:00:21.5]} 27...
Rad8 {[%clk 0:01:08.7]} 28. Nf3 {[%clk 0:00:22.8]} 28... Rc4 {[%clk 0:01:09.8]}
29. Rfc1 {[%clk 0:00:23.4]} 29... Rxc2 {[%clk 0:01:10.1]} 30. Rxc2 {[%clk
0:00:24.7]} 30... Bxa2 {[%clk 0:01:11.5]} 31. h4 {[%clk 0:00:18.9]} 31... a5
{[%clk 0:01:10.5]} 32. h5 {[%clk 0:00:19.5]} 32... Bb3 {[%clk 0:01:11.6]} 33.
Rc3 {[%clk 0:00:20]} 33... a4 {[%clk 0:01:12.6]} 34. Kh2 {[%clk 0:00:21.5]}
34... Ba5 {[%clk 0:01:11.9]} 35. Rc5 {[%clk 0:00:21.9]} 35... Bb6 {[%clk
0:01:11]} 36. Rc1 {[%clk 0:00:21.8]} 36... Bxf2 {[%clk 0:01:12]} 37. h6 {[%clk
0:00:23.1]} 37... Bg3+ {[%clk 0:01:12.9]} 38. Kh3 {[%clk 0:00:24.2]} 38... Rd1
{[%clk 0:01:09.2]} 39. Rc5 {[%clk 0:00:23.8]} 39... Rh1+ {[%clk 0:00:48.8]} 40.
Kg4 {[%clk 0:00:24.7]} 40... Bf7 {[%clk 0:00:50.5]} 41. Bc8 {[%clk 0:00:21.9]}
41... Bh5+ {[%clk 0:00:51.5]} 42. Rxh5 {[%clk 0:00:22.4]} 42... Rxh5 {[%clk
0:00:43.1]} 43. Kxh5 {[%clk 0:00:19.8]} 43... b5 {[%clk 0:00:39.6]} 44. Bd7
{[%clk 0:00:20.8]} 44... b4 {[%clk 0:00:41.2]} 45. Bxc6 {[%clk 0:00:21.5]} 45...
a3 {[%clk 0:00:42.7]} 46. bxa3 {[%clk 0:00:22.6]} 46... bxa3 {[%clk 0:00:44.3]}
47. Bd5 {[%clk 0:00:24.1]} 47... Bf2 {[%clk 0:00:45.2]} 48. Ba2 {[%clk
0:00:25.1]} 48... Be3 {[%clk 0:00:46]} 49. Nh2 {[%clk 0:00:25.4]} 49... f3
{[%clk 0:00:35.3]} 50. Nxf3 {[%clk 0:00:24.4]} 50... f5 {[%clk 0:00:36.4]} 51.
e5 {[%clk 0:00:25.2]} 51... Bxh6 {[%clk 0:00:37.6]} 52. Kxh6 {[%clk 0:00:24.4]}
52... f4 {[%clk 0:00:38.9]} 53. Kg5 {[%clk 0:00:25.9]} 1-0